bitfinex-derivatives/quotes_ETHF0:USTF0_20250217
["timestamp","ask_amount","ask_price","bid_price","bid_amount"]
[1739775207815,0.5958,2683.5,2683.4,1.31598]
[1739775209516,0.5958,2683.5,2683.4,1.88828]
[1739775210012,0.5958,2683.5,2683.4,1.143]
[1739775210218,0.74528,2683.4,2683.3,3.2078]
[1739775210419,0.5958,2683.5,2683.3,3.95311]
[1739775210726,1.34107,2683.5,2683.3,3.95311]
[1739775211119,0.74528,2683.4,2683.3,3.2078]
[1739775211323,1.32948,2683.4,2683.3,3.2078]
[1739775212124,0.5842,2683.4,2683.3,0.74531]
[1739775212625,0.5958,2683.5,2683.4,0.74528]
[1739775214629,1.1234,2683.7,2683.2,3.2078]
[1739775214826,2.46362,2683.7,2683.5,0.74525]
[1739775215019,1.7184,2683.7,2683.3,0.5552]
[1739775215219,2.46361,2683.7,2683.5,0.74524]
[1739775216323,2.4636,2683.7,2683.4,0.5795]
[1739775216528,0.74531,2683.3,2683.2,3.2078]
[1739775216728,0.74529,2683.4,2683.2,3.95313]
[1739775216915,0.5707,2683.3,2683.2,3.95313]
[1739775218629,1.31601,2683.3,2683.2,3.2078]
[1739775219528,0.5707,2683.3,2683.2,3.95314]
[1739775220130,0.5707,2683.3,2683.2,3.2078]
[1739775220327,1.31601,2683.3,2683.2,3.2078]
[1739775224929,1.31601,2683.3,2683.2,3.95314]
[1739775225130,1.31601,2683.3,2683.2,3.2078]
[1739775226031,1.31601,2683.3,2683.1,0.74535]
[1739775226534,0.5707,2683.3,2683.1,0.74535]
[1739775226732,0.5707,2683.3,2683.0,0.5638]
[1739775227034,0.74534,2683.2,2683.1,0.74536]
[1739775227237,0.74536,2683.2,2683.0,1.30919]
[1739775227635,0.5707,2683.3,2682.9,3.7813]
[1739775227836,1.1451,2683.2,2682.9,3.7813]
[1739775228333,0.74539,2683.0,2682.9,3.7813]
[1739775229935,0.74539,2683.0,2682.9,3.2078]
[1739775233335,4.41707754,2683.2,2682.7,1.707]
[1739775233537,0.74543,2682.9,2682.7,5.66027]
[1739775233833,6.28045754,2683.2,2682.7,4.9148]
[1739775234131,0.74545,2682.9,2682.7,4.9148]
[1739775234335,0.74545,2682.9,2682.7,5.66028]
[1739775234530,6.28045754,2683.2,2682.7,4.9148]
[1739775234839,0.74545,2682.8,2682.7,3.2078]
[1739775235332,3.2078,2682.8,2682.6,0.00558722]
[1739775235531,4.38628,2682.7,2682.6,0.00558722]
[1739775235936,0.74559,2682.3,2682.2,0.5636]
[1739775236134,3.27197754,2682.6,2682.1,1.097]
[1739775236432,0.74562,2682.2,2682.1,1.097]
[1739775236643,5.73097754,2682.3,2682.1,1.097]
[1739775236930,6.47657754,2682.3,2682.1,1.097]
[1739775237136,5.73097754,2682.3,2682.1,1.097]
[1739775237336,2.459,2682.3,2682.1,1.097]
[1739775237940,2.459,2682.3,2682.1,1.84263]
[1739775238639,2.46458722,2682.5,2682.2,0.74561]
[1739775238837,2.46458722,2682.5,2682.3,0.5639]
[1739775239838,3.21013722,2682.5,2682.3,0.5639]
[1739775240027,2.46458722,2682.5,2682.3,0.5639]
[1739775240339,3.21013722,2682.5,2682.3,0.5639]
[1739775240933,2.46458722,2682.5,2682.3,0.5639]
[1739775241243,0.00558722,2682.5,2682.3,0.5639]
[1739775241428,0.00558722,2682.5,2682.4,0.74556]
[1739775241934,0.00558722,2682.5,2682.3,0.5639]
[1739775242136,0.75113722,2682.5,2682.3,0.5639]
[1739775242637,0.00558722,2682.5,2682.3,0.5639]
[1739775243033,0.00558722,2682.5,2682.3,1.30949]
[1739775243735,0.74556,2682.4,2682.3,0.5639]
[1739775244242,0.00558722,2682.5,2682.3,0.5639]
[1739775244440,0.75114722,2682.5,2682.3,0.5639]
[1739775245739,0.75113722,2682.5,2682.3,0.5639]
[1739775246042,0.74556,2682.4,2682.3,0.5639]
[1739775248135,0.75113722,2682.5,2682.3,0.5639]
[1739775248335,0.00558722,2682.5,2682.3,0.5639]
[1739775248536,0.75112722,2682.5,2682.3,1.30948]
[1739775248745,0.75112722,2682.5,2682.3,0.5639]
[1739775249040,0.74556,2682.4,2682.3,0.5639]
[1739775249550,0.00558722,2682.5,2682.3,0.5639]
[1739775249745,0.75113722,2682.5,2682.3,1.30949]
[1739775250444,0.00558722,2682.5,2682.3,0.5639]
[1739775250745,0.00558722,2682.5,2682.4,0.74556]
[1739775253245,0.75111722,2682.5,2682.4,0.74556]
[1739775253552,0.00558722,2682.5,2682.4,0.74556]
[1739775259150,0.00558722,2682.5,2682.4,8.57571566]
[1739775260154,0.74541,2683.0,2682.4,8.57571566]
[1739775260361,2.459,2683.1,2682.8,0.74542]
[1739775260655,0.74539,2683.0,2682.9,1.86492]
[1739775260854,0.74539,2683.0,2682.9,1.1195]
[1739775261054,0.74539,2683.0,2682.9,1.86492]
[1739775261259,0.74539,2683.0,2682.9,1.1195]
[1739775262359,0.00558722,2683.2,2682.9,1.1195]
[1739775262664,0.00558722,2683.2,2683.1,0.74537]
[1739775263165,0.00558722,2683.2,2682.9,1.1195]
[1739775263358,0.74537,2683.1,2683.0,0.5385]
[1739775263755,0.60088722,2683.2,2683.0,0.5385]
[1739775263954,1.34624722,2683.2,2683.0,0.5385]
[1739775264162,0.60088722,2683.2,2683.0,0.5385]
[1739775264363,0.74537,2683.1,2683.0,0.5385]
[1739775265467,0.60088722,2683.2,2683.0,0.5385]
[1739775265667,0.74537,2683.1,2683.0,0.5385]
[1739775266060,0.60088722,2683.2,2683.0,0.5385]
[1739775266260,1.34624722,2683.2,2683.0,1.28389]
[1739775266466,0.00558722,2683.2,2683.0,0.5385]
[1739775266666,0.00558722,2683.2,2683.1,0.74537]
[1739775267867,0.75092722,2683.2,2683.0,0.5385]
[1739775268173,0.00558722,2683.2,2683.0,1.28388]
[1739775268470,0.00558722,2683.2,2683.0,0.5385]
[1739775268670,0.74539,2683.0,2682.9,1.1195]
[1739775268873,0.74542,2682.9,2682.8,0.5539]
[1739775269078,0.74545,2682.8,2682.6,3.9533]
[1739775269373,0.74543,2682.9,2682.8,7.88660936]
[1739775269674,0.74543,2682.9,2682.7,0.74547]
[1739775270367,0.74543,2682.9,2682.6,3.95328]
[1739775270865,0.74543,2682.9,2682.7,8.56278543]
[1739775271067,0.74544,2682.9,2682.7,7.81731543]
[1739775271263,0.74544,2682.9,2682.7,8.56279543]
[1739775271469,0.5785,2683.1,2682.8,0.74544]
[1739775271673,0.74537,2683.1,2682.9,1.31062]
[1739775271870,0.74537,2683.1,2683.0,0.5485]
[1739775274474,0.74539,2683.0,2682.9,0.5652]
[1739775277379,0.74545,2682.8,2682.7,0.5636]
[1739775277581,1.28844,2682.9,2682.7,1.1347]
[1739775278278,1.28844,2682.9,2682.7,1.88017]
[1739775279273,0.543,2682.9,2682.7,1.88017]
[1739775279580,0.74545,2682.8,2682.7,1.1347]
[1739775279781,0.74551,2682.6,2682.5,0.5737]
[1739775280779,0.74552,2682.6,2682.4,0.5414]
[1739775281281,0.74552,2682.6,2682.4,1.28696]
[1739775281785,0.543,2682.9,2682.4,0.5414]
[1739775281970,2.40659,2682.9,2682.4,0.5414]
[1739775282166,0.74553,2682.6,2682.4,0.5414]
[1739775282374,3.2078,2682.7,2682.3,3.7832]
[1739775282570,0.74556,2682.4,2682.3,3.2078]
[1739775282977,1.32026,2682.4,2682.3,3.2078]
[1739775283380,1.1469,2682.4,2682.1,0.5822]
[1739775283678,0.74562,2682.2,2682.1,0.5822]
[1739775283871,1.1469,2682.4,2682.1,0.5822]
[1739775284078,0.74561,2682.3,2682.1,0.5822]
[1739775284277,0.74561,2682.3,2682.1,1.32784]
[1739775284685,0.74561,2682.3,2682.1,0.5822]
[1739775284973,1.1469,2682.4,2682.1,0.5822]
[1739775285170,0.74564,2682.1,2682.0,4.3516]
[1739775286384,1.89247,2682.4,2682.0,5.09726]
[1739775286569,0.74557,2682.4,2682.0,4.3516]
[1739775286775,0.74557,2682.4,2682.1,0.74564]
[1739775287077,0.74558,2682.4,2682.1,0.74564]
[1739775287281,2.458,2682.5,2682.2,0.74561]
[1739775287572,3.20355,2682.5,2682.3,0.5711]
[1739775287778,3.20355,2682.5,2682.4,0.5777]
[1739775287970,3.20355,2682.5,2682.4,1.1475]
[1739775288573,2.458,2682.5,2682.4,1.1475]
[1739775288772,3.20353,2682.5,2682.4,1.1475]
[1739775289373,0.74556,2682.4,2682.3,0.5711]
[1739775289578,2.458,2682.5,2682.3,0.5711]
[1739775289776,2.458,2682.5,2682.3,1.31667]
[1739775289976,1.32302,2682.6,2682.3,1.31667]
[1739775290178,2.457,2682.5,2682.3,1.31667]
[1739775290482,3.20256,2682.5,2682.3,0.5711]
[1739775291086,0.74556,2682.4,2682.3,0.5711]
[1739775292275,0.74562,2682.2,2682.1,1.1433]
[1739775292477,0.74564,2682.1,2682.0,3.2078]
[1739775293184,2.44404,2682.1,2682.0,3.2078]
[1739775294481,2.44404,2682.1,2681.9,0.00558722]
[1739775294482,0.74567,2682.0,2681.9,0.00558722]
[1739775295185,3.95347,2682.0,2681.9,0.00558722]
[1739775295387,0.74567,2682.0,2681.9,0.00558722]
[1739775299490,3.2026,2682.0,2681.9,0.00558722]
[1739775301084,2.457,2682.0,2681.9,0.00558722]
[1739775301489,6.1228,2682.3,2681.9,0.00558722]
[1739775301792,2.457,2682.2,2682.0,0.74559]
[1739775302089,0.74557,2682.1,2681.9,0.00558722]
[1739775302687,2.457,2682.2,2682.0,0.74559]
[1739775302893,2.457,2682.2,2682.0,3.95339]
[1739775303793,3.20255,2682.2,2682.0,3.95339]
[1739775303993,2.457,2682.2,2682.0,3.2078]
[1739775304396,2.457,2682.2,2682.0,3.95338]
[1739775305392,2.457,2682.2,2682.1,0.74557]
[1739775305590,0.74553,2682.3,2682.1,0.74557]
[1739775305792,0.74553,2682.3,2682.2,1.6726]
[1739775306292,0.74552,2682.3,2682.2,1.6726]
[1739775306793,3.2025,2682.4,2682.2,1.6726]
[1739775306991,3.2078,2683.0,2682.3,3.2078]
[1739775307180,0.74537,2682.9,2682.6,0.74543]
[1739775307385,0.74537,2682.9,2682.7,1.6619]
[1739775307386,0.74538,2682.8,2682.7,1.6619]
[1739775307793,3.20236,2682.9,2682.7,1.6619]
[1739775308296,2.457,2682.9,2682.7,2.4073]
[1739775308492,5.6648,2683.0,2682.7,2.4073]
[1739775308887,3.95313,2683.0,2682.7,2.4073]
[1739775309194,3.2078,2683.0,2682.9,0.74535]
[1739775309394,2.46258722,2683.2,2682.9,3.2078]
[1739775309689,2.46258722,2683.2,2683.0,0.74531]
[1739775309690,0.00558722,2683.2,2683.0,0.74531]
[1739775310394,0.00558722,2683.2,2683.0,0.7453]
[1739775310591,0.00558722,2683.2,2683.1,0.7453]
[1739775312399,0.00558722,2683.2,2682.9,3.2078]
[1739775312695,0.00558722,2683.2,2682.9,3.95315]
[1739775313097,0.00558722,2683.2,2682.9,3.2078]
[1739775313396,0.74531,2683.1,2682.9,3.2078]
[1739775314694,0.74532,2683.0,2682.9,3.2078]
[1739775314997,0.74532,2683.0,2682.7,1.108]
[1739775314998,0.74538,2682.8,2682.7,1.108]
[1739775315294,41.54538,2682.8,2682.7,1.108]
[1739775315499,40.8,2682.8,2682.6,3.2078]
[1739775315700,40.8,2682.8,2682.3,1.1655]
[1739775315998,0.74549,2682.4,2682.3,0.5857]
[1739775317591,3.0236,2682.5,2682.3,0.5857]
[1739775317885,0.74549,2682.4,2682.3,0.5857]
[1739775318599,3.0236,2682.5,2682.3,0.5857]
[1739775318794,0.74549,2682.4,2682.3,0.5857]
[1739775321394,0.74555,2682.2,2682.1,0.5417]
[1739775322500,3.0236,2682.5,2682.1,0.5417]
[1739775322705,0.74555,2682.2,2682.1,0.5417]
[1739775323804,0.74555,2682.2,2682.0,0.5805]
[1739775323805,3.27197754,2682.3,2682.0,0.5805]
[1739775323996,0.74557,2682.1,2682.0,0.5805]
[1739775324691,3.20157,2682.1,2682.0,0.5805]
[1739775324999,0.7456,2682.0,2681.9,3.21338722]
[1739775325802,1.3171,2682.0,2681.9,3.21338722]
[1739775326009,1.8946,2682.0,2681.9,3.21338722]
[1739775327201,1.149,2682.0,2681.9,3.21338722]
[1739775327391,1.8946,2682.0,2681.9,3.21338722]
[1739775328405,1.149,2682.0,2681.9,3.21338722]
[1739775328699,0.5715,2682.0,2681.9,3.21338722]
[1739775328903,1.3171,2682.0,2681.9,3.21338722]
[1739775329303,0.5715,2682.0,2681.9,3.21338722]
[1739775329699,2.915,2682.3,2681.9,3.21338722]
[1739775330001,2.456,2682.1,2682.0,0.74559]
[1739775330205,3.66053,2682.3,2682.0,0.74559]
[1739775330206,5.371,2682.3,2682.0,0.74559]
[1739775330504,6.11653,2682.3,2681.9,3.75578722]
[1739775330709,5.371,2682.3,2682.1,0.74556]
[1739775330903,5.371,2682.3,2682.2,0.5567]
[1739775331208,0.7455,2682.4,2682.2,0.5567]
[1739775331409,3.2015,2682.4,2682.2,0.5567]
[1739775331605,3.2015,2682.4,2682.2,1.86835]
[1739775331806,2.456,2682.4,2682.2,5.07615]
[1739775332108,2.456,2682.7,2682.2,7.60257754]
[1739775332301,2.456,2682.7,2682.5,3.95326]
[1739775332498,2.456,2682.7,2682.6,0.5661]
[1739775332896,2.456,2682.7,2682.6,1.31153]
[1739775333107,2.456,2682.7,2682.6,0.5661]
[1739775333304,2.456,2682.8,2682.6,0.5661]
[1739775333706,2.456,2682.8,2682.7,0.74541]
[1739775334008,2.456,2683.0,2682.8,0.74537]
[1739775334211,2.456,2683.0,2682.9,0.561]
[1739775334809,3.20132,2683.0,2682.9,0.561]
[1739775335110,0.74536,2682.9,2682.6,1.1313]
[1739775335809,3.20134,2683.0,2682.6,1.1313]
[1739775336609,3.20134,2683.0,2682.6,1.87673]
[1739775337113,0.74539,2682.8,2682.6,1.1313]
[1739775337704,2.456,2683.0,2682.6,1.1313]
[1739775337907,2.456,2683.0,2682.7,0.7454]
[1739775338108,2.456,2683.0,2682.8,0.5457]
[1739775338305,2.456,2682.9,2682.8,0.5457]
[1739775339016,3.20135,2682.9,2682.8,0.5457]
[1739775339217,2.456,2682.9,2682.8,0.5457]
[1739775339816,2.456,2682.9,2682.8,1.29108]
[1739775340411,0.00558722,2683.2,2682.8,1.29108]
[1739775340611,2.456,2683.1,2682.8,1.29108]
[1739775340818,2.456,2683.1,2682.8,4.49888]
[1739775341214,0.00558722,2683.2,2682.8,4.49888]
[1739775341409,3.20586722,2683.2,2682.8,3.7535]
[1739775341621,2.46058722,2683.2,2682.8,3.7535]
[1739775341821,3.20587722,2683.2,2682.8,3.7535]
[1739775342021,3.20587722,2683.2,2682.9,0.74535]
[1739775342223,0.7453,2683.1,2683.0,0.5609]
[1739775343821,3.20586722,2683.2,2683.0,0.5609]
[1739775344333,3.20587722,2683.2,2683.0,0.5609]
[1739775344927,2.46058722,2683.2,2683.0,1.30621]
[1739775345430,0.00558722,2683.2,2683.1,0.7453]
[1739775345733,0.00558722,2683.2,2683.1,1.3055]
[1739775346427,0.00558722,2683.2,2683.1,4.5133]
[1739775350433,0.00558722,2683.2,2683.1,7.78527754]
[1739775352031,0.74513,2683.7,2683.6,0.74513]
[1739775352331,0.74512,2683.8,2683.7,0.74513]
[1739775353335,0.74509,2683.9,2683.7,0.74513]
[1739775353529,3.02488722,2684.0,2683.7,0.74513]
[1739775354332,0.74509,2683.9,2683.7,0.74513]
[1739775354729,0.74508,2683.9,2683.7,0.74512]
[1739775355234,0.00558722,2684.0,2683.9,0.74507]
[1739775355429,0.00558722,2684.0,2683.9,3.95287]
[1739775355627,3.2078,2684.8,2684.0,1.86261]
[1739775355828,2.454,2684.7,2684.4,0.74492]
[1739775356028,2.454,2684.7,2684.5,0.5952]
[1739775356333,6.95864,2684.8,2684.5,0.5952]
[1739775356637,0.74486,2684.7,2684.5,0.5952]
[1739775356825,6.2138,2684.8,2684.5,0.5952]
[1739775357536,0.74486,2684.7,2684.5,0.5952]
[1739775357737,0.74488,2684.6,2684.5,0.5952]
[1739775358933,6.2138,2684.8,2684.5,0.5952]
[1739775359131,0.74488,2684.6,2684.5,0.5952]
[1739775360835,9.48577754,2684.8,2684.2,3.2078]
[1739775361030,0.74495,2684.4,2684.3,0.5954]
[1739775361235,0.74493,2684.5,2684.3,0.5954]
[1739775361437,0.7449,2684.6,2684.3,1.34035]
[1739775361734,9.48577754,2684.8,2684.3,1.34035]
[1739775361934,0.74487,2684.7,2684.3,1.34035]
[1739775362135,6.27797754,2684.8,2684.5,3.2078]
[1739775362429,0.552,2684.8,2684.5,3.9527]
[1739775362629,0.552,2684.8,2684.5,3.95269]
[1739775363239,1.29683,2684.8,2684.5,3.95269]
[1739775363540,0.552,2684.8,2684.5,3.95269]
[1739775363837,1.29684,2684.8,2684.5,3.95269]
[1739775364032,0.552,2684.8,2684.5,3.2078]
[1739775364230,0.74488,2684.6,2684.5,3.2078]
[1739775364832,0.552,2684.8,2684.5,3.2078]
[1739775365034,0.74488,2684.6,2684.5,3.2078]
[1739775366533,0.74491,2684.5,2684.4,0.5452]
[1739775366932,0.7449,2684.6,2684.4,0.5452]
[1739775367130,0.74491,2684.5,2684.4,0.5452]
[1739775367335,0.7449,2684.6,2684.4,0.5452]
[1739775367941,0.74491,2684.5,2684.4,0.5452]
[1739775368134,3.27197754,2684.5,2684.2,3.2078]
[1739775368433,0.7451,2683.8,2683.7,6.1228]
[1739775368630,0.74507,2683.9,2683.7,3.2078]
[1739775368831,0.7451,2683.9,2683.7,3.2078]
[1739775369029,0.7451,2683.8,2683.7,3.2078]
[1739775369436,0.74516,2683.6,2683.5,0.00558722]
[1739775369632,3.19816,2683.6,2683.5,0.00558722]
[1739775370141,2.453,2683.6,2683.5,0.00558722]
[1739775370440,2.453,2683.6,2683.5,1.33546722]
[1739775370641,2.453,2683.6,2683.5,0.59028722]
[1739775371142,2.453,2683.6,2683.5,1.15628722]
[1739775372143,2.453,2683.6,2683.5,0.59028722]
[1739775374145,3.5848,2683.9,2683.5,1.33546722]
[1739775374937,3.5848,2683.9,2683.5,0.59028722]
[1739775375145,0.74512,2683.8,2683.5,0.59028722]
[1739775375342,3.5848,2683.9,2683.5,0.59028722]
[1739775375538,0.74512,2683.8,2683.5,0.59028722]
[1739775375744,0.74513,2683.7,2683.5,0.59028722]
[1739775375945,0.74516,2683.6,2683.5,0.59028722]
[1739775376147,0.74516,2683.6,2683.5,0.00558722]
[1739775377540,4.32989,2683.9,2683.5,0.00558722]
[1739775377741,3.1981,2683.8,2683.5,0.75076722]
[1739775378047,3.19811,2683.8,2683.5,0.75076722]
[1739775378341,2.453,2683.8,2683.5,0.75075722]
[1739775378843,2.453,2683.8,2683.5,0.00558722]
[1739775379547,2.453,2683.8,2683.5,0.75074722]
[1739775379949,3.75219,2683.9,2683.5,0.75074722]
[1739775380146,3.19806,2684.0,2683.6,0.74514]
[1739775380352,0.74509,2683.9,2683.7,1.1661]
[1739775380545,0.74509,2683.9,2683.7,1.7426]
[1739775380750,2.453,2684.0,2683.7,2.48773]
[1739775380952,2.453,2684.0,2683.7,1.7426]
[1739775381143,3.19806,2684.0,2683.7,2.48771]
[1739775381454,2.453,2684.1,2683.8,0.74508]
[1739775381948,0.74502,2684.1,2683.8,0.74508]
[1739775382353,3.2078,2684.2,2683.8,0.74508]
[1739775382545,3.2078,2684.2,2683.7,4.9504]
[1739775382546,0.74506,2684.0,2683.7,5.69552]
[1739775383348,3.198,2684.2,2683.9,0.74506]
[1739775383546,3.2078,2684.5,2684.0,3.2078]
[1739775383753,2.453,2684.4,2684.1,0.5825]
[1739775383942,3.95271,2684.5,2684.2,1.1344]
[1739775384250,3.2078,2684.5,2684.2,1.87937]
[1739775384445,3.2078,2684.5,2684.2,1.1344]
[1739775384649,3.2078,2684.5,2684.2,1.87939]
[1739775384952,0.5801,2684.6,2684.3,3.2078]
[1739775385153,2.453,2684.7,2684.5,0.7449]
[1739775385349,2.453,2684.7,2684.6,3.7903]
[1739775385745,2.453,2684.7,2684.6,4.53518]
[1739775386047,2.453,2684.7,2684.6,3.7903]
[1739775387655,3.19785,2684.7,2684.6,3.7903]
[1739775388056,2.453,2684.7,2684.6,3.7903]
[1739775388256,2.453,2684.7,2684.6,4.53518]
[1739775388460,0.75039722,2684.9,2684.6,4.53518]
[1739775388757,0.75039722,2684.9,2684.7,0.5619]
[1739775389151,0.74482,2684.8,2684.7,0.5619]
[1739775389556,0.75039722,2684.9,2684.7,0.5619]
[1739775390561,0.74482,2684.8,2684.7,0.5619]
[1739775390755,0.00558722,2684.9,2684.7,0.5619]
[1739775391054,0.00558722,2684.9,2684.7,1.30674]
[1739775391262,0.00558722,2684.9,2684.7,1.1574]
[1739775392161,0.00558722,2684.9,2684.7,1.90225]
[1739775392359,0.75038722,2684.9,2684.7,1.90225]
[1739775392761,0.75038722,2684.9,2684.7,1.1574]
[1739775393062,0.00558722,2684.9,2684.7,1.1574]
[1739775393464,0.75039722,2684.9,2684.7,1.1574]
[1739775393760,0.00558722,2684.9,2684.7,1.90225]
[1739775393959,0.00558722,2684.9,2684.8,0.74482]
[1739775394355,1.33517,2685.4,2684.7,1.1574]
[1739775394557,0.74467,2685.4,2685.3,3.2078]
[1739775394959,0.74464,2685.5,2685.3,3.2078]
[1739775395156,2.452,2685.6,2685.3,3.2078]
[1739775395352,0.5463,2685.7,2685.3,3.2078]
[1739775395558,0.7446,2685.6,2685.3,3.2078]
[1739775395764,0.74466,2685.4,2685.3,3.2078]
[1739775396166,0.74465,2685.5,2685.3,3.2078]
[1739775396464,0.74462,2685.6,2685.3,3.2078]
[1739775396971,3.00202478,2685.7,2685.3,3.2078]
[1739775397158,3.00202478,2685.7,2685.3,3.95248]
[1739775397159,0.74462,2685.6,2685.3,3.95248]
[1739775397359,0.74463,2685.5,2685.3,3.2078]
[1739775397667,0.74462,2685.6,2685.3,3.2078]
[1739775397968,3.00202478,2685.7,2685.3,3.2078]
[1739775398568,0.74464,2685.5,2685.3,3.2078]
[1739775398764,0.74463,2685.5,2685.3,3.2078]
[1739775399059,0.00372478,2685.7,2685.4,0.74464]
[1739775399258,0.00372478,2685.7,2685.4,0.74465]
[1739775399856,0.00372478,2685.7,2685.3,3.2078]
[1739775400062,0.00372478,2685.7,2685.4,0.74466]
[1739775401067,0.00372478,2685.7,2685.5,0.74463]
[1739775401369,0.00372478,2685.7,2685.6,0.5775]
[1739775402563,0.00372478,2685.7,2685.6,4.5299]
[1739775404468,0.7445,2686.0,2685.7,0.74457]
[1739775404772,0.74449,2686.0,2685.9,3.2078]
[1739775406665,0.74457,2685.7,2685.6,3.7853]
[1739775406873,0.74452,2685.9,2685.6,4.3818]
[1739775407086,0.7445,2686.0,2685.7,0.74457]
[1739775407369,0.7445,2686.0,2685.9,3.2078]
[1739775408468,0.74457,2685.7,2685.6,3.7853]
[1739775409374,0.74457,2685.7,2685.6,3.2078]
[1739775410172,0.5419,2685.8,2685.6,3.2078]
[1739775410375,2.45,2686.0,2685.6,3.2078]
[1739775410575,2.45,2686.0,2685.8,0.74454]
[1739775410774,0.74445,2686.2,2685.9,3.95232]
[1739775411077,0.74445,2686.2,2686.0,0.5722]
[1739775411271,6.8106,2686.3,2686.0,0.5722]
[1739775411474,6.8106,2686.3,2685.8,0.5739]
[1739775411675,0.74451,2686.0,2685.8,0.5739]
[1739775411871,6.8106,2686.3,2685.8,0.5739]
[1739775412072,0.74448,2686.1,2685.8,0.5739]
[1739775412272,6.2227,2686.3,2685.9,3.2078]
[1739775412481,6.2227,2686.3,2685.9,3.95231]
[1739775412673,0.74444,2686.2,2685.9,3.95231]
[1739775413179,6.2227,2686.3,2685.9,3.2078]
[1739775413881,6.2227,2686.3,2685.9,3.95232]
[1739775414076,0.74446,2686.2,2685.9,3.95232]
[1739775414481,3.0149,2686.3,2685.9,3.2078]
[1739775414672,0.74446,2686.2,2685.9,3.95231]
[1739775415181,3.0149,2686.3,2685.9,3.95231]
[1739775415476,0.74445,2686.2,2685.9,3.95231]
[1739775416273,0.74444,2686.2,2685.9,3.9523]
[1739775416478,3.75933,2686.3,2686.0,0.74448]
[1739775416679,0.5897,2686.6,2685.9,3.2078]
[1739775416871,2.45,2686.5,2685.9,3.2078]
[1739775417482,0.74441,2686.3,2686.0,0.74448]
[1739775417878,0.74441,2686.3,2686.1,0.5971]
[1739775418177,2.45,2686.5,2686.1,0.5971]
[1739775418381,0.74449,2686.0,2685.9,3.2078]
[1739775420376,3.19349,2686.0,2685.9,3.2078]
[1739775423294,2.449,2686.0,2685.9,3.2078]
[1739775423493,0.74448,2686.1,2685.9,3.2078]
[1739775423691,2.449,2686.2,2686.0,1.1129]
[1739775423896,0.74446,2686.1,2686.0,1.6948]
[1739775424394,2.449,2686.2,2686.0,1.6948]
[1739775424795,3.19345,2686.2,2686.0,1.6948]
[1739775424991,0.74446,2686.1,2686.0,1.6948]
[1739775425996,2.449,2686.2,2686.0,1.6948]
[1739775426191,3.19346,2686.2,2686.0,1.6948]
[1739775426498,2.449,2686.2,2686.0,1.6948]
[1739775426793,3.19344,2686.2,2686.0,1.6948]
[1739775427297,2.449,2686.2,2686.0,1.6948]
[1739775427602,0.74446,2686.1,2686.0,1.6948]
[1739775428197,2.449,2686.2,2686.0,1.6948]
[1739775428498,0.74446,2686.1,2686.0,1.6948]
[1739775431595,0.74446,2686.1,2686.0,1.1481]
[1739775431795,1.31506,2686.1,2686.0,1.1481]
[1739775436401,0.74449,2686.0,2685.9,3.2078]
[1739775436702,1.31009,2686.0,2685.9,3.2078]
[1739775436996,0.74457,2685.7,2685.6,4.3692]
[1739775437902,0.74466,2685.4,2685.3,3.7633]
[1739775438096,0.74466,2685.4,2685.3,3.2078]
[1739775439897,0.74462,2685.6,2685.3,3.2078]
[1739775440195,0.74462,2685.6,2685.4,0.5576]
[1739775440401,0.5684,2685.7,2685.4,1.154]
[1739775440601,0.74462,2685.6,2685.4,1.154]
[1739775440899,0.5684,2685.7,2685.4,1.154]
[1739775441198,0.74463,2685.5,2685.4,1.154]
[1739775442009,3.19362,2685.6,2685.4,1.154]
[1739775442201,0.74463,2685.5,2685.4,1.154]
[1739775442502,2.449,2685.6,2685.4,1.154]
[1739775442702,3.19361,2685.6,2685.4,1.154]
[1739775443006,3.19361,2685.6,2685.5,0.5604]
[1739775443702,3.19361,2685.6,2685.3,3.2078]
[1739775443703,2.449,2685.6,2685.3,3.2078]
[1739775443902,0.74466,2685.4,2685.3,3.2078]
[1739775444402,0.74466,2685.4,2685.3,4.8893]
[1739775444593,0.74465,2685.5,2685.3,4.8893]
[1739775445398,2.449,2685.6,2685.3,4.8893]
[1739775445598,3.19361,2685.6,2685.3,4.8893]
[1739775445799,2.449,2685.6,2685.3,4.8893]
[1739775445998,2.449,2685.6,2685.3,5.63397]
[1739775446402,3.19361,2685.6,2685.3,5.63397]
[1739775446900,3.19361,2685.6,2685.3,4.8893]
[1739775446901,2.449,2685.6,2685.3,4.8893]
[1739775447101,3.19362,2685.6,2685.3,4.8893]
[1739775447301,2.449,2685.6,2685.3,4.8893]
[1739775447507,0.74465,2685.5,2685.3,4.8893]
[1739775447702,0.74459,2685.7,2685.3,4.8893]
[1739775447902,0.74462,2685.6,2685.3,4.8893]
[1739775448109,2.449,2685.8,2685.3,4.8893]
[1739775448305,0.74463,2685.5,2685.3,4.8893]
[1739775450499,0.74466,2685.4,2685.3,4.8893]
[1739775451309,0.5462,2685.7,2685.3,4.8893]
[1739775451506,0.74465,2685.5,2685.3,4.8893]
[1739775452207,0.5462,2685.7,2685.3,4.8893]
[1739775452405,0.74466,2685.4,2685.3,4.8893]
[1739775454200,0.74466,2685.4,2685.3,4.3187]
[1739775454507,0.74466,2685.4,2685.3,3.2078]
[1739775454714,3.19366,2685.4,2685.3,3.2078]
[1739775455010,3.19366,2685.4,2685.2,0.00558722]
[1739775455011,0.74469,2685.3,2685.2,0.00558722]
[1739775455213,4.01666754,2685.3,2685.2,0.00558722]